fUSD/lending_fUSD_20250515
["ID","MTS","AMOUNT","RATE_DAILY","PERIOD"]
[361135202,1747301279475,-151.0,0.00011365,2]
[361135203,1747301279503,-170.947587,0.00011365,2]
[361135204,1747301279538,-1175.596063,0.00011365,2]
[361135205,1747301279567,-151.0,0.00011365,2]
[361135206,1747301279593,-170.947587,0.00011365,2]
[361135207,1747301279620,-151.0,0.00011365,2]
[361135208,1747301279651,-151.0,0.00011365,2]
[361135209,1747301279678,-151.0,0.00011365,2]
[361135210,1747301279711,-151.0,0.00011365,2]
[361135211,1747301279743,-151.0,0.00011365,2]
[361135212,1747301279775,-151.0,0.00011365,2]
[361135213,1747301279805,-151.0,0.00011365,2]
[361135214,1747301279832,-151.0,0.00011365,2]
[361135215,1747301279859,-151.0,0.00011365,2]
[361135216,1747301279888,-151.0,0.00011365,2]
[361135217,1747301279916,-151.0,0.00011365,2]
[361135218,1747301279943,-151.0,0.00011365,2]
[361135219,1747301279973,-151.0,0.00011365,2]
[361135220,1747301279999,-151.0,0.00011365,2]
[361135221,1747301280026,-151.0,0.00011365,2]
[361135222,1747301280052,-151.0,0.00011365,2]
[361135223,1747301280077,-151.0,0.00011365,2]
[361135224,1747301280103,-151.0,0.00011365,2]
[361135225,1747301280128,-182.395184,0.00011365,2]
[361135226,1747301280155,-274.656473,0.00011365,2]
[361135227,1747301280182,-274.656473,0.00011365,2]
[361135228,1747301280212,-151.0,0.00011365,2]
[361135229,1747301280241,-572.407252,0.00011365,2]
[361135230,1747301280269,-151.0,0.00011365,2]
[361135231,1747301280297,-151.0,0.00011365,2]
[361135232,1747301280323,-151.0,0.00011365,2]
[361135233,1747301280349,-151.0,0.00011365,2]
[361135234,1747301280376,-151.0,0.00011365,2]
[361135235,1747301280404,-151.0,0.00011365,2]
[361135236,1747301280432,-151.0,0.00011365,2]
[361135237,1747301280466,-151.0,0.00011365,2]
[361135238,1747301280494,-151.0,0.00011365,2]
[361135239,1747301280521,-186.367216,0.00011365,2]
[361135240,1747301280549,-161.258318,0.00011365,2]
[361135241,1747301280575,-186.367216,0.00011365,2]
[361135242,1747301280601,-161.258318,0.00011365,2]
[361135243,1747301280628,-151.0,0.00011365,2]
[361135244,1747301280656,-151.0,0.00011365,2]
[361135245,1747301280683,-151.0,0.00011365,2]
[361135246,1747301280713,-151.0,0.00011365,2]
[361135247,1747301280742,-151.0,0.00011365,2]
[361135248,1747301280768,-3090.06,0.00011365,2]
[361135249,1747301280796,-400.0,0.00011365,2]
[361135250,1747301280822,-400.0,0.00011365,2]
[361135251,1747301280848,-433.51,0.00011365,2]
[361135252,1747301280873,-863.78,0.00011365,2]
[361135253,1747301280899,-400.0,0.00011365,2]
[361135254,1747301280926,-499.46108,0.00011365,2]
[361135255,1747301280953,-499.46108,0.00011365,2]
[361135256,1747301280978,-151.0,0.00011365,2]
[361135257,1747301281003,-151.0,0.00011365,2]
[361135258,1747301281030,-202.076674,0.00011365,2]
[361135259,1747301281056,-10506.37,0.00011365,2]
[361135260,1747301281081,-209.34327,0.00011365,2]
[361135261,1747301281106,-400.0,0.00011365,2]
[361135262,1747301281132,-2223.22,0.00011365,2]
[361135263,1747301281159,-400.0,0.00011365,2]
[361135264,1747301281185,-873.23,0.00011365,2]
[361135265,1747301281212,-400.0,0.00011365,2]
[361135266,1747301281238,-400.0,0.00011365,2]
[361135267,1747301281264,-1843.54,0.00011365,2]
[361135268,1747301281290,-1119.84,0.00011365,2]
[361135269,1747301281535,-151.0,0.00011365,2]
[361135270,1747301281563,-151.0,0.00011365,2]
[361135271,1747301281591,-552.28,0.00011365,2]
[361135272,1747301281617,-151.0,0.00011365,2]
[361135273,1747301281644,-151.0,0.00011365,2]
[361135274,1747301281669,-151.0,0.00011365,2]
[361135275,1747301281693,-151.0,0.00011365,2]
[361135276,1747301281720,-279.372914,0.00011365,2]
[361135277,1747301281746,-151.0,0.00011365,2]
[361135278,1747301281772,-151.0,0.00011365,2]
[361135279,1747301281798,-151.0,0.00011365,2]
[361135280,1747301281823,-151.0,0.00011365,2]
[361135281,1747301281847,-151.0,0.00011365,2]
[361135282,1747301281872,-151.0,0.00011365,2]
[361135283,1747301281896,-189.402386,0.00011365,2]
[361135284,1747301281921,-189.402386,0.00011365,2]
[361135285,1747301281945,-189.402386,0.00011365,2]
[361135286,1747301281976,-189.402386,0.00011365,2]
[361135287,1747301282001,-189.402386,0.00011365,2]
[361135288,1747301282027,-189.402386,0.00011365,2]
[361135289,1747301282055,-2511.716383,0.00011365,2]
[361135290,1747301282083,-2511.716383,0.00011365,2]
[361135291,1747301282109,-2511.716383,0.00011365,2]
[361135292,1747301282136,-2511.716383,0.00011365,2]
[361135293,1747301282163,-2511.716383,0.00011365,2]
[361135294,1747301282190,-2511.716383,0.00011365,2]
[361135295,1747301282218,-719.52358209,0.00011369,2]
[361135296,1747301282244,-275.22848436,0.00011369,2]
[361135297,1747301282270,-502.63310205,0.00011373,2]
[361135298,1747301282295,-502.37137733,0.00011373,2]
[361135299,1747301282321,-503.11082927,0.00011373,2]
[361135300,1747301282346,-507.55889128,0.00011373,2]
[361135301,1747301282373,-500.0,0.00011373,2]
[361135302,1747301282398,-500.0,0.00011373,2]
[361135303,1747301282424,-500.78382127,0.00011373,2]
[361135304,1747301282450,-500.0,0.00011373,2]
[361135305,1747301282476,-350.0,0.00011373,2]
[361135306,1747301282502,-300.0,0.00011375,2]
[361135307,1747301282528,-201.08774952,0.00011376,2]
[361135308,1747301282554,-400.0,0.00011376,2]
[361135309,1747301282579,-400.0,0.00011376,2]
[361135310,1747301282605,-404.01281699,0.00011376,2]
[361135311,1747301282631,-355.29222698,0.00011376,2]
[361135312,1747301282658,-294.14440841,0.00011376,2]
[361135313,1747301282683,-400.0,0.00011376,2]
[361135314,1747301282712,-400.0,0.00011376,2]
[361135315,1747301282742,-400.0,0.00011376,2]
[361135316,1747301282769,-400.0,0.00011376,2]
[361135317,1747301282797,-400.0,0.00011376,2]
[361135318,1747301282823,-400.0,0.00011376,2]
[361135319,1747301282848,-400.0,0.00011376,2]
[361135320,1747301282875,-400.0,0.00011376,2]
[361135321,1747301282899,-400.0,0.00011376,2]
[361135322,1747301282924,-400.0,0.00011376,2]
[361135323,1747301282950,-400.0,0.00011376,2]
[361135324,1747301282975,-400.0,0.00011376,2]
[361135325,1747301282999,-408.37026472,0.00011376,2]
[361135326,1747301283025,-400.0,0.00011376,2]
[361135327,1747301283052,-400.0,0.00011376,2]
[361135328,1747301283078,-400.0,0.00011376,2]
[361135329,1747301283103,-400.0,0.00011376,2]
[361135330,1747301283129,-400.0,0.00011376,2]
[361135331,1747301283157,-400.0,0.00011376,2]
[361135332,1747301283184,-400.0,0.00011376,2]
[361135333,1747301283213,-400.0,0.00011376,2]
[361135334,1747301283240,-400.0,0.00011376,2]
[361135335,1747301283266,-400.0,0.00011376,2]
[361135336,1747301283292,-400.0,0.00011376,2]
[361135337,1747301283320,-400.0,0.00011376,2]
[361135338,1747301283347,-400.0,0.00011376,2]
[361135339,1747301283374,-400.0,0.00011376,2]
[361135340,1747301283401,-217.3514713,0.00011376,2]
[361135341,1747301283428,-400.0,0.00011376,2]
[361135342,1747301283457,-400.0,0.00011376,2]
[361135343,1747301283484,-400.0,0.00011376,2]
[361135344,1747301283511,-400.0,0.00011376,2]
[361135345,1747301283539,-400.0,0.00011376,2]
[361135346,1747301283566,-425.77483684,0.00011376,2]
[361135347,1747301283593,-400.0,0.00011376,2]
[361135348,1747301283619,-450.0,0.00011376,2]
[361135349,1747301283649,-400.0,0.00011376,2]
[361135350,1747301283676,-250.0,0.00011376,2]
[361135351,1747301283704,-400.0,0.00011376,2]
[361135352,1747301283734,-400.0,0.00011376,2]
[361135353,1747301283763,-261.97241009,0.00011376,2]
[361135354,1747301283791,-400.0,0.00011376,2]
[361135355,1747301283821,-400.0,0.00011376,2]
[361135356,1747301283849,-400.0,0.00011376,2]
[361135357,1747301283878,-400.0,0.00011376,2]
[361135358,1747301283907,-400.0,0.00011376,2]
[361135359,1747301283932,-400.0,0.00011376,2]
[361135360,1747301283959,-400.0,0.00011376,2]
[361135361,1747301283985,-423.50613318,0.00011376,2]
[361135362,1747301284010,-400.0,0.00011376,2]
[361135363,1747301284036,-400.0,0.00011376,2]
[361135364,1747301284063,-400.0,0.00011376,2]
[361135365,1747301284089,-400.0,0.00011376,2]
[361135366,1747301284115,-400.0,0.00011376,2]
[361135367,1747301284141,-410.12554934,0.00011376,2]
[361135368,1747301284169,-400.0,0.00011376,2]
[361135369,1747301284195,-400.0,0.00011376,2]
[361135370,1747301284223,-400.0,0.00011376,2]
[361135371,1747301284249,-340.75079024,0.00011376,2]
[361135372,1747301284275,-400.0,0.00011376,2]
[361135373,1747301284301,-400.0,0.00011376,2]
[361135374,1747301284326,-517.48940091,0.00011376,2]
[361135375,1747301284351,-400.0,0.00011376,2]
[361135376,1747301284379,-400.0,0.00011376,2]
[361135377,1747301284406,-155.13829108,0.00011376,2]
[361135378,1747301284434,-400.0,0.00011376,2]
[361135379,1747301284461,-400.0,0.00011376,2]
[361135380,1747301284490,-400.0,0.00011376,2]
[361135381,1747301284518,-400.0,0.00011376,2]
[361135382,1747301284545,-400.0,0.00011376,2]
[361135383,1747301284572,-400.0,0.00011376,2]
[361135384,1747301284600,-400.0,0.00011376,2]
[361135385,1747301284627,-400.0,0.00011376,2]
[361135386,1747301284867,-400.0,0.00011376,2]
[361135387,1747301284894,-400.0,0.00011376,2]
[361135388,1747301284922,-400.0,0.00011376,2]
[361135389,1747301284948,-400.0,0.00011376,2]
[361135390,1747301284976,-407.29850008,0.00011376,2]
[361135391,1747301285003,-410.84753983,0.00011376,2]
[361135392,1747301285029,-151.0,0.00011376,2]
[361135393,1747301285055,-400.0,0.00011376,2]
[361135394,1747301285081,-400.0,0.00011376,2]
[361135395,1747301285106,-400.0,0.00011376,2]
[361135396,1747301285131,-404.96938799,0.00011376,2]
[361135397,1747301285157,-400.0,0.00011376,2]
[361135398,1747301285183,-400.0,0.00011376,2]
[361135399,1747301285209,-400.0,0.00011376,2]
[361135400,1747301285234,-400.0,0.00011376,2]
[361135401,1747301285260,-400.0,0.00011376,2]
[361135402,1747301285285,-403.72103968,0.00011376,2]
[361135403,1747301285311,-400.0,0.00011376,2]
[361135404,1747301285335,-400.0,0.00011376,2]
[361135405,1747301285362,-400.0,0.00011376,2]
[361135406,1747301285387,-400.0,0.00011376,2]
[361135407,1747301285413,-400.0,0.00011376,2]
[361135408,1747301285439,-400.0,0.00011376,2]
[361135409,1747301285466,-400.0,0.00011376,2]
[361135410,1747301285492,-400.49763421,0.00011376,2]
[361135411,1747301285518,-400.0,0.00011376,2]
[361135412,1747301285543,-400.0,0.00011376,2]
[361135413,1747301285568,-451.72160587,0.00011376,2]
[361135414,1747301285594,-421.33253689,0.00011376,2]
[361135415,1747301285620,-400.0,0.00011376,2]
[361135416,1747301285648,-537.49926504,0.00011376,2]
[361135417,1747301285673,-400.0,0.00011376,2]
[361135418,1747301285699,-400.0,0.00011376,2]
[361135419,1747301285727,-533.80323385,0.00011376,2]
[361135420,1747301285752,-400.0,0.00011376,2]
[361135421,1747301285781,-400.0,0.00011376,2]
[361135422,1747301285808,-400.0,0.00011376,2]
[361135423,1747301285834,-400.0,0.00011376,2]
[361135424,1747301285859,-400.0,0.00011376,2]
[361135425,1747301285884,-400.0,0.00011376,2]
[361135426,1747301285909,-425.78076143,0.00011376,2]
[361135427,1747301285936,-400.0,0.00011376,2]
[361135428,1747301285963,-400.0,0.00011376,2]
[361135429,1747301285988,-400.0,0.00011376,2]
[361135430,1747301286014,-400.0,0.00011376,2]
[361135431,1747301286039,-400.0,0.00011376,2]
[361135432,1747301286064,-400.0,0.00011376,2]
[361135433,1747301286089,-272.09689193,0.00011376,2]
[361135434,1747301286114,-400.0,0.00011376,2]
[361135435,1747301286138,-400.0,0.00011376,2]
[361135436,1747301286163,-484.79,0.00011376,2]
[361135437,1747301286188,-400.0,0.00011376,2]
[361135438,1747301286216,-400.0,0.00011376,2]
[361135439,1747301286242,-400.0,0.00011376,2]
[361135440,1747301286267,-400.0,0.00011376,2]
[361135441,1747301286294,-400.0,0.00011376,2]
[361135442,1747301286319,-400.0,0.00011376,2]
[361135443,1747301286344,-400.0,0.00011376,2]
[361135444,1747301286369,-400.0,0.00011376,2]
[361135445,1747301286395,-400.0,0.00011376,2]
[361135446,1747301286424,-400.0,0.00011376,2]
[361135447,1747301286453,-400.0,0.00011376,2]
[361135448,1747301286479,-401.38321263,0.00011376,2]
[361135449,1747301286506,-400.0,0.00011376,2]
[361135450,1747301286533,-400.0,0.00011376,2]
[361135451,1747301286558,-503.52,0.00011376,2]
[361135452,1747301286584,-400.0,0.00011376,2]
[361135453,1747301286610,-400.0,0.00011376,2]
[361135454,1747301286636,-400.0,0.00011376,2]
[361135455,1747301286662,-400.0,0.00011376,2]
[361135456,1747301286686,-449.80901957,0.00011376,2]
[361135457,1747301286714,-400.0,0.00011376,2]
[361135458,1747301286747,-400.0,0.00011376,2]
[361135459,1747301286773,-406.71731721,0.00011376,2]
[361135460,1747301286799,-400.0,0.00011376,2]
[361135461,1747301286824,-400.0,0.00011376,2]
[361135462,1747301286849,-400.0,0.00011376,2]
[361135463,1747301286874,-502.55039718,0.00011376,2]
[361135464,1747301286900,-400.0,0.00011376,2]
[361135465,1747301286925,-400.0,0.00011376,2]
[361135466,1747301286952,-400.0,0.00011376,2]
[361135467,1747301286976,-400.0,0.00011376,2]
[361135468,1747301287003,-151.0,0.00011376,2]
[361135469,1747301287028,-403.18496682,0.00011376,2]
[361135470,1747301287053,-400.0,0.00011376,2]
[361135471,1747301287078,-572.407252,0.00011376,2]
[361135472,1747301287103,-400.0,0.00011376,2]
[361135473,1747301287128,-400.0,0.00011376,2]
[361135474,1747301287153,-400.0,0.00011376,2]
[361135475,1747301287179,-399.96136816,0.00011376,2]
[361135476,1747301287205,-400.0,0.00011376,2]
[361135477,1747301287233,-400.0,0.00011376,2]
[361135478,1747301287258,-400.0,0.00011376,2]
[361135479,1747301287286,-400.0,0.00011376,2]
[361135480,1747301287311,-400.0,0.00011376,2]
[361135481,1747301287335,-463.33939275,0.00011376,2]
[361135482,1747301287359,-404.18008717,0.00011376,2]
[361135483,1747301287384,-400.0,0.00011376,2]
[361135484,1747301287408,-400.0,0.00011376,2]
[361135485,1747301287433,-500.84740603,0.00011376,2]
[361135486,1747301287459,-400.0,0.00011376,2]
[361135487,1747301287484,-400.0,0.00011376,2]
[361135488,1747301287509,-400.0,0.00011376,2]
[361135489,1747301287534,-400.0,0.00011376,2]
[361135490,1747301287558,-405.14537309,0.00011376,2]
[361135491,1747301287583,-400.0,0.00011376,2]
[361135492,1747301287608,-400.0,0.00011376,2]
[361135493,1747301287634,-400.0,0.00011376,2]
[361135494,1747301287659,-400.0,0.00011376,2]
[361135495,1747301287685,-400.0,0.00011376,2]
[361135496,1747301287709,-406.33491748,0.00011376,2]
[361135497,1747301287738,-500.0,0.00011376,2]
[361135498,1747301287763,-400.0,0.00011376,2]
[361135499,1747301287788,-403.01798758,0.00011376,2]
[361135500,1747301287816,-400.0,0.00011376,2]
[361135501,1747301287841,-400.0,0.00011376,2]
[361135502,1747301287865,-400.0,0.00011376,2]
[361135503,1747301287891,-407.8778813,0.00011376,2]
[361135504,1747301288141,-402.42976137,0.00011376,2]
[361135505,1747301288167,-400.0,0.00011376,2]
[361135506,1747301288193,-400.0,0.00011376,2]
[361135507,1747301288219,-400.0,0.00011376,2]
[361135508,1747301288246,-400.0,0.00011376,2]
[361135509,1747301288271,-406.47471695,0.00011376,2]
[361135510,1747301288296,-400.0,0.00011376,2]
[361135511,1747301288320,-400.0,0.00011376,2]
[361135512,1747301288346,-151.0,0.00011376,2]
[361135513,1747301288372,-405.00844652,0.00011376,2]
[361135514,1747301288397,-400.0,0.00011376,2]
[361135515,1747301288423,-409.98180195,0.00011376,2]
[361135516,1747301288448,-200.00000001,0.00011376,2]
[361135517,1747301288475,-400.0,0.00011376,2]
[361135518,1747301288503,-151.0,0.00011376,2]
[361135519,1747301288529,-399.99982884,0.00011376,2]
[361135520,1747301288555,-182.711326,0.00011376,2]
[361135521,1747301288580,-151.0,0.00011376,2]
[361135522,1747301288605,-400.0,0.00011376,2]
[361135523,1747301288632,-400.0,0.00011376,2]
[361135525,1747301288659,-400.0,0.00011376,2]
[361135526,1747301288686,-400.0,0.00011376,2]
[361135527,1747301288712,-316.84968893,0.00011376,2]
[361135528,1747301288739,-562.22790196,0.00011376,2]
[361135529,1747301288767,-400.0,0.00011376,2]
[361135530,1747301288792,-233.887404,0.00011376,2]
[361135531,1747301288821,-400.0,0.00011376,2]
[361135532,1747301288846,-400.0,0.00011376,2]
[361135533,1747301288871,-400.0,0.00011376,2]
[361135534,1747301288896,-400.0,0.00011376,2]
[361135535,1747301288921,-400.0,0.00011376,2]
[361135536,1747301288945,-400.0,0.00011376,2]
[361135537,1747301288972,-400.0,0.00011376,2]
[361135538,1747301288998,-400.0,0.00011376,2]
[361135539,1747301289024,-400.0,0.00011376,2]
[361135540,1747301289050,-400.0,0.00011376,2]
[361135541,1747301289075,-400.0,0.00011376,2]
[361135542,1747301289101,-402.49489018,0.00011376,2]
[361135543,1747301289125,-400.0,0.00011376,2]
[361135544,1747301289150,-400.0,0.00011376,2]
[361135545,1747301289175,-411.06761138,0.00011376,2]
[361135546,1747301289201,-400.0,0.00011376,2]
[361135547,1747301289227,-151.0,0.00011376,2]
[361135548,1747301289254,-400.0,0.00011376,2]
[361135549,1747301289281,-405.49628376,0.00011376,2]
[361135550,1747301289307,-400.0,0.00011376,2]
[361135551,1747301289333,-400.0,0.00011376,2]
[361135552,1747301289358,-400.0,0.00011376,2]
[361135553,1747301289384,-400.0,0.00011376,2]
[361135554,1747301289410,-400.0,0.00011376,2]
[361135555,1747301289435,-400.0,0.00011376,2]
[361135556,1747301289463,-400.0,0.00011376,2]
[361135557,1747301289488,-405.72367558,0.00011376,2]
[361135558,1747301289514,-151.0,0.00011376,2]
[361135559,1747301289541,-404.9043579,0.00011376,2]
[361135560,1747301289569,-400.0,0.00011376,2]
[361135561,1747301289595,-456.29,0.00011376,2]
[361135562,1747301289623,-404.47153628,0.00011376,2]
[361135563,1747301289652,-400.0,0.00011376,2]
[361135564,1747301289679,-400.0,0.00011376,2]
[361135565,1747301289706,-400.0,0.00011376,2]
[361135566,1747301289734,-407.78104656,0.00011376,2]
[361135567,1747301289759,-400.0,0.00011376,2]
[361135568,1747301289786,-400.0,0.00011376,2]
[361135569,1747301289814,-400.0,0.00011376,2]
[361135570,1747301289840,-502.69874485,0.00011376,2]
[361135571,1747301289864,-400.0,0.00011376,2]
[361135572,1747301289890,-400.0,0.00011376,2]
[361135573,1747301289914,-400.0,0.00011376,2]
[361135574,1747301289938,-400.0,0.00011376,2]
[361135575,1747301289964,-400.0,0.00011376,2]
[361135576,1747301289988,-400.0,0.00011376,2]
[361135577,1747301290014,-400.0,0.00011376,2]
[361135578,1747301290038,-1000.0,0.00011376,2]
[361135579,1747301290063,-400.0,0.00011376,2]
[361135580,1747301290087,-413.31004454,0.00011376,2]
[361135581,1747301290112,-151.0,0.00011376,2]
[361135582,1747301290137,-151.0,0.00011376,2]
[361135583,1747301290162,-405.2714382,0.00011376,2]
[361135584,1747301290186,-151.0,0.00011376,2]
[361135585,1747301290213,-408.57925795,0.00011376,2]
[361135586,1747301290238,-400.0,0.00011376,2]
[361135587,1747301290264,-400.0,0.00011376,2]
[361135588,1747301290289,-400.0,0.00011376,2]
[361135589,1747301290316,-400.0,0.00011376,2]
[361135590,1747301290343,-400.0,0.00011376,2]
[361135591,1747301290369,-186.367216,0.00011376,2]
[361135592,1747301290394,-400.0,0.00011376,2]
[361135593,1747301290420,-402.94170775,0.00011376,2]
[361135594,1747301290446,-400.0,0.00011376,2]
[361135595,1747301290475,-400.0,0.00011376,2]
[361135596,1747301290501,-419.84,0.00011376,2]
[361135597,1747301290527,-161.258318,0.00011376,2]
[361135598,1747301290552,-186.367216,0.00011376,2]
[361135599,1747301290577,-161.258318,0.00011376,2]
[361135600,1747301290604,-400.0,0.00011376,2]
[361135601,1747301290631,-161.258318,0.00011376,2]
[361135602,1747301290659,-400.0,0.00011376,2]
[361135603,1747301290684,-161.258318,0.00011376,2]
[361135604,1747301290711,-400.0,0.00011376,2]
[361135605,1747301290740,-400.0,0.00011376,2]
[361135606,1747301290765,-400.0,0.00011376,2]
[361135607,1747301290791,-400.75935237,0.00011376,2]
[361135608,1747301290817,-400.0,0.00011376,2]
[361135609,1747301290842,-402.36027832,0.00011376,2]
[361135610,1747301290867,-151.0,0.00011376,2]
[361135611,1747301290891,-151.0,0.00011376,2]
[361135612,1747301290916,-454.12242911,0.00011376,2]
[361135613,1747301290942,-151.0,0.00011376,2]
[361135614,1747301290967,-400.0,0.00011376,2]
[361135615,1747301290991,-407.84290749,0.00011376,2]
[361135616,1747301291015,-400.0,0.00011376,2]
[361135617,1747301291040,-400.0,0.00011376,2]
[361135618,1747301291064,-400.0,0.00011376,2]
[361135619,1747301291088,-400.0,0.00011376,2]
[361135620,1747301291113,-400.0,0.00011376,2]
[361135621,1747301291137,-401.3169723,0.00011376,2]
[361135622,1747301291342,-400.0,0.00011376,2]
[361135623,1747301291379,-400.0,0.00011376,2]
[361135624,1747301291403,-400.0,0.00011376,2]
[361135625,1747301291427,-400.0,0.00011376,2]
[361135626,1747301291452,-407.75154881,0.00011376,2]
[361135627,1747301291476,-407.09832821,0.00011376,2]
[361135628,1747301291500,-406.22474091,0.00011376,2]
[361135629,1747301291524,-402.89372206,0.00011376,2]
[361135630,1747301291548,-400.0,0.00011376,2]
[361135631,1747301291572,-402.33979979,0.00011376,2]
[361135632,1747301291596,-414.35168371,0.00011376,2]
[361135633,1747301291620,-400.0,0.00011376,2]
[361135634,1747301291646,-400.0,0.00011376,2]
[361135635,1747301291670,-404.21314567,0.00011376,2]
[361135636,1747301291693,-437.34757325,0.00011376,2]
[361135637,1747301291720,-407.14873021,0.00011376,2]
[361135638,1747301291753,-400.0,0.00011376,2]
[361135639,1747301291777,-420.76496431,0.00011376,2]
[361135640,1747301291800,-401.99739474,0.00011376,2]
[361135641,1747301291825,-400.0,0.00011376,2]
[361135642,1747301291849,-400.0,0.00011376,2]
[361135643,1747301291873,-400.0,0.00011376,2]
[361135644,1747301291897,-405.86902762,0.00011376,2]
[361135645,1747301291920,-427.14089842,0.00011376,2]
[361135646,1747301291943,-400.95837007,0.00011376,2]
[361135647,1747301291967,-414.62438392,0.00011376,2]
[361135648,1747301291991,-400.0,0.00011376,2]
[361135649,1747301292014,-406.69668341,0.00011376,2]
[361135650,1747301292037,-409.76404444,0.00011376,2]
[361135651,1747301292061,-400.0,0.00011376,2]
[361135652,1747301292084,-406.60783678,0.00011376,2]
[361135653,1747301292108,-400.0,0.00011376,2]
[361135654,1747301292131,-400.0,0.00011376,2]
[361135655,1747301292154,-409.18758798,0.00011376,2]
[361135656,1747301292178,-400.0,0.00011376,2]
[361135657,1747301292201,-404.2637166,0.00011376,2]
[361135658,1747301292224,-462.41017633,0.00011376,2]
[361135659,1747301292248,-151.0,0.00011376,2]
[361135660,1747301292271,-406.69765194,0.00011376,2]
[361135661,1747301292295,-151.0,0.00011376,2]
[361135662,1747301292318,-409.93768497,0.00011376,2]
[361135663,1747301292341,-400.0,0.00011376,2]
[361135664,1747301292365,-400.0,0.00011376,2]
[361135665,1747301292388,-338.24991024,0.00011376,2]
[361135666,1747301292411,-404.48378611,0.00011376,2]
[361135667,1747301292435,-400.0,0.00011376,2]
[361135668,1747301292461,-408.65166649,0.00011376,2]
[361135669,1747301292485,-400.0,0.00011376,2]
[361135670,1747301292509,-404.11436668,0.00011376,2]
[361135671,1747301292532,-400.0,0.00011376,2]
[361135672,1747301292557,-405.42741607,0.00011376,2]
[361135673,1747301292579,-400.0,0.00011376,2]
[361135674,1747301292602,-154.32004117,0.00011376,2]
[361135675,1747301292625,-400.0,0.00011376,2]
[361135676,1747301292650,-440.98,0.00011376,2]
[361135677,1747301292674,-400.0,0.00011376,2]
[361135678,1747301292698,-408.76576203,0.00011376,2]
[361135679,1747301292725,-151.0,0.00011376,2]
[361135680,1747301292748,-400.0,0.00011376,2]
[361135681,1747301292773,-151.0,0.00011376,2]
[361135682,1747301292798,-829.68,0.00011376,2]
[361135683,1747301292824,-400.0,0.00011376,2]
[361135684,1747301292847,-400.0,0.00011376,2]
[361135685,1747301292871,-400.0,0.00011376,2]
[361135686,1747301292896,-406.07403078,0.00011376,2]
[361135687,1747301292920,-400.0,0.00011376,2]
[361135688,1747301292943,-408.18331286,0.00011376,2]
[361135689,1747301292967,-418.40965706,0.00011376,2]
[361135690,1747301292992,-413.61958286,0.00011376,2]
[361135691,1747301293016,-403.88888942,0.00011376,2]
[361135692,1747301293039,-400.0,0.00011376,2]
[361135693,1747301293062,-400.0,0.00011376,2]
[361135694,1747301293085,-400.0,0.00011376,2]
[361135695,1747301293108,-500.0,0.00011376,2]
[361135696,1747301293132,-400.0,0.00011376,2]
[361135697,1747301293155,-406.90567714,0.00011376,2]
[361135698,1747301293179,-449.50702731,0.00011376,2]
[361135699,1747301293203,-404.75036917,0.00011376,2]
[361135700,1747301293227,-400.0,0.00011376,2]
[361135701,1747301293251,-414.25172151,0.00011376,2]
[361135702,1747301293274,-400.0,0.00011376,2]